Cogmind - Beta 15 @@@ ROGUE MODE // 2025.09.25 @ 21:35:02 Player: The Sun Result: Destroyed by G-47 Trooper with Particle Gun Performance ------------- Evolutions (3) 1500 Regions Visited (4) 800 Robots Destroyed (47) 235 Value Destroyed (1587) 1587 Prototype IDs (0) 0 Alien Tech Used (0) 0 Bonus (0) 0 TOTAL SCORE: 4122 Bonus ------- None Cogmind --------- Core Integrity 0/700 Matter 236/300 Energy 135/265 System Corruption 1% Temperature Warm (126) Movement Flying (197) Ox2 Location -7/Factory Parts ------- > --- POWER (2) -------- Improved Ion Engine > --- PROPULSION (4) --- Xenon Bombardment Thruster Xenon Bombardment Thruster > --- UTILITY (4) ------ Small Storage Unit Recoil Stabilizer Hacking Suite > --- WEAPON (3) ------- Heavy Particle Cannon Heavy Rocket Launcher > --- INVENTORY (8) ---- Aluminum Leg Improved Heat Sink Recalibrator Peak State ------------ > --- POWER ------------ Deuterium Engine Improved Deuterium Engine > --- PROPULSION ------- Aluminum Leg Xenon Bombardment Thruster Xenon Bombardment Thruster Xenon Bombardment Thruster > --- UTILITY ---------- Small Storage Unit Hardened Light Armor Plating Hacking Suite System Restoration Module > --- WEAPON ----------- Particle Gun Heavy Particle Cannon Heavy Assault Rifle > --- INVENTORY -------- Improved Ion Engine Recalibrator Heavy Rocket Launcher [Rating: 38] Favorites ----------- Power Deuterium Engine Engine Deuterium Engine Power Core Nuclear Core Propulsion Aluminum Leg Leg Aluminum Leg Flight Unit Xenon Bombardment Thruster Utility Small Storage Unit Device Improved Heat Sink Storage Small Storage Unit Processor Improved Targeting Computer Hackware Hacking Suite Protection Hardened Light Armor Plating Weapon Particle Gun Energy Gun Particle Gun Energy Cannon Particle Cannon Ballistic Gun Heavy Assault Rifle Launcher Heavy Rocket Launcher Build | -11 -10 -9 -8 -7 ------- Run | Yrd Mat Mat Mat Fac Slots Evolved 6 | . . 2 2 2 Power 1 | . . 1 . . Propulsion 2 | . . . 1 1 Utility 2 | . . 1 . 1 Weapon 1 | . . . 1 . Parts Attached 62 | 6 4 16 11 25 Power 14 | 1 1 4 3 5 Engine 13 | 1 1 4 3 4 Core 1 | . . . . 1 Reactor . | . . . . . Propulsion 14 | 2 1 3 3 5 Treads . | . . . . . Leg 11 | 2 1 3 3 2 Wheel . | . . . . . Hover . | . . . . . Flight 3 | . . . . 3 Utility 19 | . 2 4 3 10 Device 9 | . . 2 2 5 Storage 3 | . 2 . . 1 Processor 1 | . . . . 1 Hackware 1 | . . . . 1 Protection 5 | . . 2 1 2 Artifact . | . . . . . Weapon 15 | 3 . 5 2 5 Energy Gun 9 | 1 . 3 2 3 Energy Cannon 2 | . . 1 . 1 Ballistic Gun 3 | 2 . 1 . . Ballistic Cannon . | . . . . . Launcher 1 | . . . . 1 Special Weapon . | . . . . . Impact Weapon . | . . . . . Slashing Weapon . | . . . . . Piercing Weapon . | . . . . . Special Melee Weapon . | . . . . . Unidentified Prototypes . | . . . . . Parts Lost 21 | . 1 4 3 13 Power 5 | . 1 1 1 2 Propulsion 6 | . . 1 . 5 Utility 4 | . . 1 1 2 Weapon 6 | . . 1 1 4 Highest Loss Streak 5 | . 1 2 2 5 To Critical Strikes . | . . . . . Average Backups 4 | 2 2 4 5 5 Power 1 | . . . 1 1 Propulsion . | . . . . 1 Utility 1 | . . 1 1 1 Weapon 1 | . 1 1 2 1 Tool/Special . | . . . . . Unused Backups 8 | . . 3 1 4 Power 2 | . . 1 . 1 Propulsion 4 | . . 2 . 2 Utility 1 | . . . 1 . Weapon 1 | . . . . 1 Tool/Special . | . . . . . Average Slot Usage (%) 91 | . 84 86 98 94 Engine 13 | . 10 13 18 13 Leg 24 | . 28 20 27 24 Flight 1 | . . . . 2 Device 9 | . . 10 9 12 Storage 10 | . 16 13 9 7 Protection 6 | . . 6 8 6 Energy Gun 13 | . 14 9 16 15 Energy Cannon 3 | . . 8 1 1 Ballistic Gun 6 | . 14 3 9 5 Peak Build Rating 38 | 5 7 11 22 38 Average Rating 19 | 4 5 9 18 31 On Entrance 9 | . 5 7 11 22 Naked Turns . | . . . . . Heaviest Build 42 | 9 12 20 32 42 Greatest Support 53 | 20 20 20 35 53 Greatest Overweight (x) 4 | . . 1 1 4 Average Overweight (x) . | . . . . . Largest Inventory Capacity 8 | 5 8 8 8 8 Average Capacity 7 | 5 6 8 8 8 Most Carried 8 | 4 4 8 8 8 Average Carried 4 | 2 2 4 5 5 Final Capacity 8 | 5 8 8 8 8 Final Carried 8 | 3 2 8 5 3 Class Distribution -------------------- 37% | Mutant 29% | Scavenger-Tank 21% | Tank 7% | Scavenger-Mutant Dominant Class ---------------- Mutant | -10/Materials Mutant | -9/Materials Scavenger-Tank | -8/Materials Tank | -7/Factory Resources | -11 -10 -9 -8 -7 ----------- Run | Yrd Mat Mat Mat Fac Matter Collected 1325 | 124 207 215 268 511 Remotely . | . . . . . Salvage Created 2088 | . 78 808 332 870 Parts 106 | . 4 38 23 41 Haulers Intercepted . | . . . . . Recyclers Shooed 2 | . . 1 . 1 Parts Field Recycled . | . . . . . Retrieved Matter . | . . . . . Parts Self-Destructed . | . . . . . Prevented . | . . . . . Kills | -11 -10 -9 -8 -7 ------- Run | Yrd Mat Mat Mat Fac Combat Hostiles Destroyed 34 | . 2 13 8 11 Guns 20 | . 2 4 6 8 Cannons 10 | . . 8 1 1 AOE 2 | . . . . 2 Classes Destroyed 8 | . 1 3 2 2 Worker 4 | . . . . 4 Tunneler 1 | . . 1 . . Recycler 6 | . . 2 . 4 Watcher 2 | . . . 1 1 Swarmer 3 | . . . 3 . Grunt 18 | . 2 8 2 6 Sentry 10 | . . 5 3 2 Programmer 3 | . . . . 3 Best Kill Streak 6 | . 2 3 3 6 Combat Bots Only 3 | . 2 3 3 2 Max Kills in Single Turn 2 | . 1 1 1 2 Gunslinging . | . . . . . Exploded 1 | . . . . 1 Melee . | . . . . . Uniques/NPCs Destroyed . | . . . . . Combat | -11 -10 -9 -8 -7 -------- Run | Yrd Mat Mat Mat Fac Hostile Shots Fired 311 | . 10 74 62 165 Missed 84 | . 3 23 17 41 Hits 227 | . 7 51 45 124 Projectile 227 | . 7 51 45 124 Critical Strikes 8 | . . 4 1 3 Actively Blocked 1 | . . 1 . . Damage Taken 3295 | . 152 686 581 1876 Core 873 | . 10 96 57 710 Absorbed by Shields . | . . . . . Redirected to Shielding 72 | . . 20 52 . Core Remaining (%) 90 | 100 96 76 89 . Volleys Fired 133 | . 6 54 30 43 Largest 3 | . 2 2 3 3 Hottest 171 | . 60 113 138 171 Shots Fired 321 | . 12 108 87 114 Gun 269 | . 12 67 86 104 Cannon 50 | . . 41 1 8 Launcher 2 | . . . . 2 Special . | . . . . . Kinetic 83 | . 6 23 30 24 Thermal 210 | . 6 81 47 76 Explosive 2 | . . . . 2 Electromagnetic 26 | . . 4 10 12 Robot Hit Streak 13 | . 6 13 12 10 Robot Miss Streak 7 | . 1 4 5 7 Penetration Max . | . . . . . Secondary Targets 4 | . . . 1 3 Max Gunslinging Chain 1 | . . . 1 1 Shots Hit Robots 181 | . 10 62 48 61 Core Hits 83 | . 6 26 16 35 Critical Kills 1 | . . 1 . . Critical Parts Destroyed . | . . . . . Critical Strikes 4 | . . 2 . 2 Burn 3 | . . 1 . 2 Meltdown 1 | . . 1 . . Melee Attacks . | . . . . . Impact . | . . . . . Slashing . | . . . . . Piercing . | . . . . . Sneak Attacks . | . . . . . Combat Hostiles . | . . . . . Follow-up Attacks . | . . . . . Damage Inflicted 3350 | . 123 1081 688 1458 Guns 2243 | . 117 431 662 1033 Cannons 796 | . . 639 20 137 Explosions 231 | . . . . 231 Melee . | . . . . . Ramming 80 | . 6 11 6 57 Kinetic 693 | . 62 93 268 270 Thermal 2155 | . 55 902 385 813 Explosive 210 | . . . . 210 Electromagnetic 212 | . . 75 29 108 Impact . | . . . . . Slashing . | . . . . . Piercing . | . . . . . Highest Corruption 2 | . . . . 2 Average Corruption 1 | . . . . 1 Corruption Purged 4 | . . . . 4 Corruption Blocked . | . . . . . Effects 9 | . . . . 9 Message Errors 2 | . . . . 2 Matter Fused 1 | . . . . 1 Heat Flow Errors 3 | . . . . 3 Parts Fused 1 | . . . . 1 Data Loss (minor) 2 | . . . . 2 Overload Shots . | . . . . . Overflow Damage 30 | . . . . 30 Projectiles 24 | . . . . 24 Explosions . | . . . . . Melee 6 | . . . . 6 Knockbacks . | . . . . . Impact . | . . . . . Kinetic . | . . . . . Secondary . | . . . . . Self-Inflicted Damage . | . . . . . Shots . | . . . . . Rammed . | . . . . . Targets Rammed 18 | . 5 6 2 5 Kicked 18 | . 5 6 2 5 Crushed . | . . . . . Highest Temperature 913 | . 30 168 286 913 Average Temperature 170 | . 18 55 113 278 Received Heat Transfer 1149 | . 42 351 225 531 Effects 58 | . . . 1 57 Shutdowns 15 | . . . . 15 Energy Bleed 7 | . . . 1 6 Interference 6 | . . . . 6 Matter Decay 7 | . . . . 7 Short Circuit 3 | . . . . 3 Damage (minor) 7 | . . . . 7 Damage (major) 9 | . . . . 9 Damage (core) 4 | . . . . 4 Siege Activations . | . . . . . Martial Activations . | . . . . . Shielding Activations . | . . . . . Robots Disrupted . | . . . . . Combat Hostiles . | . . . . . Robots Corrupted 1 | . . . . 1 Combat Hostiles . | . . . . . Parts Fried . | . . . . . Impact Corruptions 1 | . . . . 1 Robots Melted 2 | . . 1 1 . Combat Hostiles 2 | . . 1 1 . Parts Melted 19 | . 1 7 4 7 Heat Transferred 4724 | . 125 1807 892 1900 Parts Sabotaged . | . . . . . Parts Stolen . | . . . . . Parts Stripped . | . . . . . Power Chain Reactions . | . . . . . Alert | -11 -10 -9 -8 -7 ------- Run | Yrd Mat Mat Mat Fac Maximum Alert Level . | . . . . . Low Security (%) 100 | 100 100 100 100 100 Level 1 . | . . . . . Level 2 . | . . . . . Level 3 . | . . . . . Level 4 . | . . . . . Level 5 . | . . . . . High Security . | . . . . . Max Security . | . . . . . Peak Influence 193 | . 50 111 106 193 Initial 13 | . . 13 8 . Average 19 | . 6 41 17 10 Influence Increases 1226 | . 87 411 237 491 Destroy 0b10 Robot/C 680 | . 40 260 160 220 Destroy 0b10 Robot/NC 65 | . . 15 5 45 Destroy Leader 204 | . 10 90 42 62 Successful Hack 7 | . 7 . . . Disable Machine 105 | . . . 15 90 Destroy Structure 45 | . . 1 . 44 Partial Spotted 15 | . . 15 . . Lose Combat Pursuer 105 | . 30 30 15 30 Influence Decreases 1033 | . 55 423 257 298 Entered New Map 31 | . . 19 12 . Time Decay 801 | . 55 374 143 229 Lost Part 119 | . . 30 20 69 Purge Threat 82 | . . . 82 . Squads Dispatched 8 | . 1 2 . 5 Investigation 3 | . . 1 . 2 Extermination 2 | . . . . 2 Reinforcement 3 | . 1 1 . 1 Assault . | . . . . . Garrison . | . . . . . Intercept . | . . . . . Searches Triggered . | . . . . . Construction Impeded . | . . . . . Haulers Reinforced . | . . . . . Active Scanning Responses . | . . . . . Cargo Convoy Interrupts . | . . . . . Stealth | -11 -10 -9 -8 -7 --------- Run | Yrd Mat Mat Mat Fac Distress Signals 3 | . 1 1 . 1 Communications Jammed 17 | . . . . 17 Distress Signals 17 | . . . . 17 Times Spotted 59 | . 8 22 11 18 Peak Tracking Total 5 | . 3 5 3 3 Tactical Retreats 5 | . 1 2 1 1 Traps | -11 -10 -9 -8 -7 ------- Run | Yrd Mat Mat Mat Fac Traps Triggered 5 | . 2 1 . 2 Indirectly . | . . . . . Trap Hack Attempts . | . . . . . Triggered . | . . . . . Disarmed . | . . . . . Reprogrammed . | . . . . . Reused . | . . . . . Traps Extracted . | . . . . . Installed . | . . . . . Triggered . | . . . . . Machines | -11 -10 -9 -8 -7 ---------- Run | Yrd Mat Mat Mat Fac Machines Disabled 7 | . . . 1 6 Max in Single Turn 5 | . . . 1 5 Machines Repaired . | . . . . . Machines Dismantled . | . . . . . Machines Sabotaged . | . . . . . Overloaded Fab Kills . | . . . . . Hacking | -11 -10 -9 -8 -7 --------- Run | Yrd Mat Mat Mat Fac Machines Accessed 18 | . 2 1 5 10 Terminals 12 | . 2 . 4 6 Fabricators 1 | . . . . 1 Repair Stations . | . . . . . Recycling Units 2 | . . . . 2 Scanalyzers 3 | . . 1 1 1 Garrison Access . | . . . . . Total Hacks 44 | . 5 2 16 21 Successful 24 | . 3 2 9 10 Failed 20 | . 2 . 7 11 Catastrophic 7 | . . . 1 6 Database Lockouts . | . . . . . Manual . | . . . . . Terminals 29 | . 5 . 14 10 Fabricators 1 | . . . . 1 Repair Stations . | . . . . . Recycling Units 5 | . . . . 5 Scanalyzers 9 | . . 2 2 5 Garrison Access . | . . . . . Terminal Hacks 13 | . 3 . 7 3 Record 7 | . 2 . 5 . Open DSF 3 | . . . . 3 Alert Level 1 | . . . 1 . Unreport Threat 1 | . . . 1 . Maintenance Status 1 | . 1 . . . Fabricator Hacks . | . . . . . Repair Station Hacks . | . . . . . Recycling Unit Hacks 2 | . . . . 2 Report Inventory 2 | . . . . 2 Scanalyzer 9 | . . 2 2 5 Insert Component 5 | . . 1 1 3 Analyze 4 | . . 1 1 2 Garrison Access Hacks . | . . . . . Unauthorized Hacks . | . . . . . Terminals . | . . . . . Fabricators . | . . . . . Repair Stations . | . . . . . Recycling Units . | . . . . . Scanalyzers . | . . . . . Garrison Access . | . . . . . Data Cores Recovered . | . . . . . Used . | . . . . . Hacking Detections 15 | . 1 1 5 8 Full Trace Events 3 | . . . 1 2 Feedback Events 2 | . . . . 2 Corruption 2 | . . . . 2 Feedback Blocked . | . . . . . Robot Schematics Acquired . | . . . . . Robots Built . | . . . . . Authchips . | . . . . . Time . | . . . . . Total Robot Build Rating . | . . . . . Part Schematics Acquired 4 | . . 1 1 2 Parts Built . | . . . . . Authchips . | . . . . . Time . | . . . . . Total Part Build Rating . | . . . . . Parts Repaired . | . . . . . Time . | . . . . . Parts Recycled . | . . . . . Recycled Matter . | . . . . . Retrieved Matter . | . . . . . Retrieved Components . | . . . . . Parts Scanalyzed 4 | . . 1 1 2 Part Schematics Acquired 4 | . . 1 1 2 Parts Damaged 1 | . . . . 1 Bothacking | -11 -10 -9 -8 -7 ------------ Run | Yrd Mat Mat Mat Fac Used RIF Installer . | . . . . . Robots Hacked . | . . . . . Non-combat . | . . . . . Combat . | . . . . . Robot Hacks Applied . | . . . . . Relay Couplers Released . | . . . . . Fabnet Peak Effective % . | . . . . . Robots Rewired . | . . . . . Allies Hacked . | . . . . . Hacks Repelled . | . . . . . Allies | -11 -10 -9 -8 -7 -------- Run | Yrd Mat Mat Mat Fac Total Allies . | . . . . . Largest Group . | . . . . . Highest-Rated Group . | . . . . . Highest-Rated Ally . | . . . . . Total Orders . | . . . . . Ally Attacks . | . . . . . Total Damage . | . . . . . Kills . | . . . . . Allies Corrupted . | . . . . . Allies Melted . | . . . . . Intel | -11 -10 -9 -8 -7 ------- Run | Yrd Mat Mat Mat Fac Active Infowar (turns) 729 | . . . . 729 Jamming 729 | . . . . 729 Robot Analysis Total . | . . . . . Derelict Logs Recovered . | . . . . . Drone Launches . | . . . . . Drone Recoveries . | . . . . . Exploration | -11 -10 -9 -8 -7 ------------- Run | Yrd Mat Mat Mat Fac Turns Passed 3669 | 207 409 1000 611 1442 Spaces Moved 2060 | 51 299 527 344 839 Core 15 | 15 . . . . Treads . | . . . . . Legs 1977 | 36 299 527 344 771 Wheels . | . . . . . Hover . | . . . . . Flight 68 | . . . . 68 Fastest Speed 50 | 50 120 120 120 114 Average Speed 129 | 99 120 136 126 131 Slowest Speed 400 | 120 120 190 190 400 Overloaded Moves . | . . . . . Propulsion Burnouts . | . . . . . Robots Hopped . | . . . . . Potential Cave-ins . | . . . . . Cave-ins Triggered . | . . . . . Exploration Rate (%) 29 | 6 49 42 31 21 Regions Visited 4 Branch Regions . Pre-discovered Areas . | . . . . . Known Exits Taken . | . . . . . Unknown Exits Taken 4 | 1 1 1 1 . Scrap Searched . | . . . . . Spaces Dug . | . . . . . Terrain Destroyed 41 | . . . . 41 Melee . | . . . . . Projectile . | . . . . . AOE 41 | . . . . 41 Terrain Rammed . | . . . . . Walls Destroyed . | . . . . . Machines Disabled . | . . . . . Actions | -11 -10 -9 -8 -7 --------- Run | Yrd Mat Mat Mat Fac Total 2778 | 207 335 694 454 1088 Wait 361 | 143 20 54 39 105 Move 2056 | 50 298 526 343 839 Hop . | . . . . . Pick Up 78 | 8 2 21 13 34 Fast Attach . | . . . . . Attach 42 | 5 3 9 6 19 Detach 8 | . . 3 1 4 Swap 42 | 1 1 12 9 19 Drop 40 | . . 9 11 20 Fire 133 | . 6 54 30 43 Melee . | . . . . . Ram . | . . . . . Kick 18 | . 5 6 2 5 Crush . | . . . . . Escape Stasis . | . . . . . Rewire . | . . . . . Trap . | . . . . . Miscellaneous . | . . . . . Route ------- -11/Scrapyard -10/Materials -9/Materials -8/Materials -7/Factory History --------- Turn | Location | Event 7 | -11/Scrapyard | Discovered new exit (range 16) 208 | -11/Scrapyard | Entered Materials 304 | -10/Materials | Build established: Mutant 603 | -10/Materials | Discovered new exit (range 8) 617 | -10/Materials | Entered another Materials area 617 | -9/Materials | Evolved 2 slots: Power x1, Utility x1 1530 | -9/Materials | Discovered new exit (range 10) 1617 | -9/Materials | Entered another Materials area 1617 | -8/Materials | Evolved 2 slots: Propulsion x1, Weapon x1 2093 | -8/Materials | Build established: Scavenger-Tank 2215 | -8/Materials | Discovered new exit (range 10) 2228 | -8/Materials | Entered Factory 2228 | -7/Factory | Evolved 2 slots: Propulsion x1, Utility x1 3392 | -7/Factory | Core integrity fell below 50% 3396 | -7/Factory | Core integrity fell below 20% 3418 | -7/Factory | Lost 5 parts (3n1u1w) 3670 | -7/Factory | Destroyed by G-47 Trooper with Particle Gun Last Messages --------------- Imp. Deuterium Engine destroyed. Destroyed Shock Rifle. Gravmag System melted. P-60 Hacker destroyed. Acquired 40 matter. R-06 Scavenger collects Remote Datajack. Hvy. Assault Rifle destroyed. Xenon Bombardment Thruster destroyed. Deuterium Engine destroyed. Imp. Deuterium Engine melted. Imp. Heat Sink melted. Y-54 Guardian destroyed. Acquired Imp. Heat Sink. Particle Gun destroyed. G-47 Trooper destroyed. Power Conduit explodes. R-06 Scavenger destroyed. Power Conduit explodes. K-01 Serf collects debris. K-01 Serf destroyed. Map ----- +----------------------------------------------------+ | ??????????????????????????????????# """""" ## | | ??????????????????????????????????# """""" ## | | ?????????????????######+########### """""" ## | | ???????????????? # """""" ## | | ???????????????? # ## | | ??????????????? + ## | | ??????????????? # ## | | ??????????????? # ## | | ??????????????????############+#### """Y""" ## | | ???????????????????????????# ## """"""" ## | | ???????????????????????????# ## + | | ???????????????????????????# ################ | | ????????????????????? ?????# #??????????????# | | ???????????????? ????"?????# """ #??????????????## | | ?????????????? "R"" ????# """ #???????????????# | | ?????????????? """" ????# """ #???????????????# | | ?????????????# ????# #???????????????# | | ?????????????##; ;;;;;##??# """ #???????????????# | | ???????????? ; ;;;###[""" #???????????????# | | ???????????? ; # """ #???????????????# | | ???????????? +| #???????????????+ | | ???????????* #######???????????????? | | ???????????%= #?????????????????????? | | ?????????? #?????????????????????? | | ?????????? ] #?????????????????????? | | ?????????? @ #???????????########### | | ?????????? !%#???????????#] !# | | ?????????? g == #??????????# # | | ??????????? ##??????????# * # | | ??????????? #???????????# # | | ????????????r ;;#####??????##########+##### | | ???????????? # #???#######?# #???? | | ?????????????# ????# =* !#?# ##########???? | | ?????????????# ?????# #?# #????????????? | | ?????????????+ ?????# #?# #????????????? | | ?????????????? ""??????# #?#%#????????????? | | ?????????????? ""??????#"" ### ###??????????? | | ????????????????]?????????#"" # #??????????? | | ??????????????????????????#""" # ########???? | | ??????????????????????????#""" / T %!#???? | | ??????????????????????????#""" # ###### #???? | | ??????????????????????????# # #????# #???? | | ??????????????????????????#########+######## #???? | | ??????????????????????????????# #%####? | | ??????????????????????????????# # #T ## | | ??????????????????????????????# ! #% | | ??????????????????????????????# ! # | | ??????????????????????????????# # | | ??????????????????????????????# %+[ | | ??????????????????????????????# ! # | +----------------------------------------------------+ Best States ------------- Heat Dissipation 48 Energy Generation 25 Energy Capacity 465 Matter Stores 350 Matter Capacity 350 Sight Range 16 Terrain Scan Density 10 Jamming Range 12 Armor Coverage 150 Weapon Shielding 66 Evasion (%) 55 Targeting Accuracy 6 Recoil Reduction 4 Offensive Hacking 10 Item Schematics ----------------- Cooling System | -9/Materials | Scanalyzed Lgt. Deuterium Engine | -8/Materials | Scanalyzed Greatsword | -7/Factory | Scanalyzed System Restoration Module | -7/Factory | Scanalyzed Robot Schematics ------------------ None Fabricated ------------ Nothing Repaired ---------- Nothing Alien Tech Used ----------------- None Achievements -------------- Total Silence Challenges ------------ None Game ------ Seed SpectralSuperchargedBasin Manual? 0 Play Time 00:40:04 Cumulative 5.1 hours Start 2025.09.25 @ 18:35:47 End 2025.09.25 @ 21:35:02 Sessions 3 Manual Loads 0 Difficulty Rogue Special Mode None Game No. 14 Rogue 14 Adventurer 0 Explorer 0 Win Type - Total 0 Types 0/0/0/0/0/0/0/0/0/0 Lore% 3 Gallery% 11 Achievement% 11 Wizard Run 0 Options --------- Layout 1 ASCII 0 Keyboard 0 Movement Mouse Keybinds 0 Fullscreen 1 Font 32/SmallcapsGlow Map View 50x35 Zoom Use 0% Tactical HUD 0 Map Filters NONE Filters NONE Steam 1 RUN: 078408af-d0c3-426c-85e1-091245ea265e